bitfinex/quotes_ETHUSD_20251110
["timestamp","ask_amount","ask_price","bid_price","bid_amount"]
[1762778918108,6.75948204,3592.9,3592.8,0.002]
[1762778918310,8.47069404,3592.9,3592.8,0.002]
[1762778918480,8.65919404,3592.9,3592.8,0.002]
[1762778919216,8.65922767,3592.9,3592.8,0.002]
[1762778920298,5.87596068,3592.9,3592.8,0.002]
[1762778920615,0.26944762,3592.9,3592.8,0.4672]
[1762778921974,7.21131567,3592.9,3592.8,0.002]
[1762778922173,7.39981567,3592.9,3592.8,0.002]
[1762778923811,7.39981567,3592.9,3592.8,0.4672]
[1762778923812,3.56444868,3592.9,3592.8,0.4672]
[1762778924026,0.26944762,3592.9,3592.8,0.4672]
[1762778924429,3.56444868,3592.9,3592.8,0.4672]
[1762778925046,0.26944762,3592.9,3592.8,0.4672]
[1762778926619,0.26944762,3592.9,3592.8,3.72304446]
[1762778926620,0.0102,3592.9,3592.8,3.72304446]
[1762778926819,0.0102,3592.9,3592.8,4.37369194]
[1762778927444,0.0102,3592.9,3592.8,1.59034748]
[1762778927816,0.0102,3592.9,3592.8,1.11784748]
[1762778928219,0.0094,3592.9,3592.8,1.11784748]
[1762778928443,0.0094,3592.9,3592.8,3.90119194]
[1762778928650,0.001,3592.9,3592.8,4.77919594]
[1762778928819,0.001,3593.2,3593.1,4.44832807]
[1762778929015,0.001,3593.3,3593.2,2.78303462]
[1762778929344,0.01,3593.9,3593.5,3.18830628]
[1762778929546,0.01,3593.9,3593.5,0.4652]
[1762778930438,0.001,3593.7,3593.5,0.4652]
[1762778931755,0.001,3593.7,3593.5,3.24800228]
[1762778932060,0.001,3593.7,3593.5,0.4652]
[1762778932430,0.001,3593.7,3593.5,3.62006024]
[1762778932631,0.001,3593.7,3593.5,4.09256024]
[1762778934865,0.001,3593.7,3593.5,0.4652]
[1762778935164,0.001,3593.7,3593.5,3.24800228]
[1762778935370,0.001,3593.7,3593.5,0.9392]
[1762778935553,0.001,3593.7,3593.5,3.72200228]
[1762778935754,0.001,3593.7,3593.5,0.9392]
[1762778935933,0.001,3593.7,3593.5,3.72200228]
[1762778936134,0.001,3593.7,3593.5,4.37249795]
[1762778936865,0.001,3593.7,3593.5,0.488]
[1762778937646,0.8655,3593.6,3592.9,0.405504]
[1762778937843,0.8655,3593.6,3592.9,0.474]
[1762778938045,0.8655,3593.6,3593.0,2.78318953]
[1762778938249,0.8655,3593.6,3592.9,0.474]
[1762778938751,0.8655,3593.6,3592.9,2.78326699]
[1762778938752,0.4899,3593.5,3592.9,2.78326699]
[1762778938959,0.3757,3593.0,3592.8,0.002]
[1762778939270,0.0038,3592.9,3592.8,0.002]
[1762778939458,0.75048024,3593.4,3592.8,0.002]
[1762778939653,3.51736926,3593.3,3592.8,0.002]
[1762778939854,0.25948024,3593.2,3592.8,0.002]
[1762778940174,0.3746,3592.9,3592.8,0.002]
[1762778940772,2.7831162,3593.1,3592.8,0.002]
[1762778940973,0.3741,3592.9,3592.8,0.002]
[1762778942047,0.4899,3593.1,3592.8,0.002]
[1762778942254,0.3753,3592.9,3592.8,0.002]
[1762778942956,3.83626699,3592.9,3592.8,0.002]
[1762778943169,4.27513504,3592.9,3592.8,0.002]
[1762778943377,0.81416805,3592.9,3592.8,0.002]
[1762778943548,0.3753,3592.9,3592.8,0.002]
[1762778944186,3.83626699,3592.9,3592.8,0.002]
[1762778944842,1.053,3592.9,3592.8,0.002]
[1762778946894,3.83626699,3592.9,3592.8,0.002]
[1762778947264,1.053,3592.9,3592.8,0.002]
[1762778947460,3.83626699,3592.9,3592.8,0.002]
[1762778947777,1.053,3592.9,3592.8,0.002]
[1762778948094,3.83626699,3592.9,3592.8,0.002]
[1762778948294,4.09535819,3592.9,3592.8,0.002]
[1762778948861,7.11708548,3592.9,3592.8,0.002]
[1762778952269,7.11628548,3592.9,3592.8,0.002]
[1762778952463,7.11598934,3592.9,3592.8,0.002]
[1762778953162,8.37570134,3592.9,3592.8,0.002]
[1762778960804,2.78388686,3592.1,3592.0,0.002]
[1762778961007,1.51850706,3592.1,3592.0,0.002]
[1762778961209,0.189,3592.9,3592.0,0.002]
[1762778961210,3.21072729,3592.9,3592.0,1.1481]
[1762778961505,0.25901206,3592.8,3592.1,0.42105232]
[1762778961707,2.78307788,3593.2,3592.7,0.488]
[1762778961906,2.78334446,3592.8,3592.7,0.488]
[1762778962432,2.78319846,3593.0,3592.7,0.488]
[1762778962433,2.78325623,3593.0,3592.7,0.488]
[1762778962631,5.80491696,3593.0,3592.9,0.488]
[1762778962991,6.92737295,3593.0,3592.2,0.474]
[1762778963196,2.78370474,3592.4,3592.2,0.474]
[1762778963618,3.02172729,3592.6,3592.3,0.488]
[1762778963791,2.78362476,3592.5,3592.3,0.49]
[1762778963996,2.78365438,3592.4,3592.3,0.002]
[1762778964405,2.78365438,3592.4,3592.3,0.49]
[1762778965011,2.78358661,3592.5,3592.3,0.49]
[1762778965218,2.78365438,3592.4,3592.3,0.4827]
[1762778965379,2.78360421,3592.5,3592.3,0.4827]
[1762778965915,2.78365438,3592.4,3592.3,0.4827]
[1762778966112,3.04317247,3592.4,3592.3,0.4827]
[1762778966316,3.04317247,3592.4,3592.3,0.9411]
[1762778967418,3.04317247,3592.4,3592.3,0.002]
[1762778967419,3.50837247,3592.4,3592.3,0.002]
[1762778969116,3.04317247,3592.4,3592.3,0.002]
[1762778970484,3.04364805,3592.4,3592.3,0.002]
[1762778971416,0.25999367,3592.4,3592.3,0.4604]
[1762778971714,0.25999367,3592.4,3592.3,0.9411]
[1762778971921,0.25999367,3592.4,3592.3,1.33221065]
[1762778972118,0.25999367,3592.4,3592.3,0.9411]
[1762778972316,3.04364805,3592.4,3592.3,0.4604]
[1762778972504,3.04364805,3592.4,3592.3,0.002]
[1762778973118,3.91254805,3592.4,3592.3,0.002]
[1762778973691,5.17226005,3592.4,3592.3,0.002]
[1762778974091,2.78388686,3592.1,3592.0,0.002]
[1762778974287,7.33031982,3592.1,3592.0,0.002]
[1762778974488,7.82851982,3592.1,3592.0,0.002]
[1762778976118,7.82771982,3592.1,3592.0,0.002]
[1762778976320,8.74150525,3592.1,3592.0,0.002]
[1762778976490,4.04367636,3592.0,3591.9,0.002]
[1762778976692,5.16897003,3592.0,3591.9,0.002]
[1762778979034,2.78458453,3591.2,3591.1,0.012]
[1762778979243,6.07490549,3591.2,3591.1,0.012]
[1762778979543,6.57310549,3591.2,3591.1,0.012]
[1762778979712,7.83281749,3591.2,3591.1,0.012]
[1762778983005,7.32601749,3591.2,3591.1,0.012]
[1762778983210,7.70391749,3591.2,3591.1,0.012]
[1762778983609,8.20091749,3591.2,3591.1,0.012]
[1762778986845,8.20091749,3591.2,3591.1,0.012]
[1762778988109,8.20005267,3591.2,3591.1,0.012]
[1762778990842,7.70305267,3591.2,3591.1,0.012]
[1762778991718,8.20005267,3591.2,3591.1,0.012]
[1762778995482,7.70305267,3591.2,3591.1,0.012]
[1762778999230,7.32515267,3591.2,3591.1,0.4951]
[1762778999640,7.32515267,3591.2,3591.1,0.012]
[1762778999850,7.70425267,3591.2,3591.1,0.012]
[1762779000048,4.30342538,3591.2,3591.1,0.012]
[1762779000236,7.32435267,3591.2,3591.1,0.012]
[1762779001342,8.19925267,3591.2,3591.1,0.012]
[1762779002037,7.70345267,3591.2,3591.1,0.012]
[1762779002777,4.30262538,3591.2,3591.1,1.1348]
[1762779002974,3.04371338,3591.2,3591.1,1.1348]
[1762779003276,0.25912885,3591.2,3591.1,1.1348]
[1762779003934,3.04371338,3591.2,3591.1,1.1348]
[1762779004133,3.04500145,3591.2,3591.1,1.1348]
[1762779004985,0.26041692,3591.2,3591.1,1.1348]
[1762779005134,3.04500145,3591.2,3591.1,1.1348]
[1762779005537,0.26041692,3591.2,3591.1,1.1348]
[1762779006772,0.26041692,3591.2,3591.1,1.52696851]
[1762779007165,2.78420576,3591.7,3591.1,3.91946208]
[1762779007359,2.78420576,3591.7,3591.2,0.4845]
[1762779007360,0.26052496,3591.6,3591.2,0.4845]
[1762779007574,0.26052496,3591.5,3591.2,0.4845]
[1762779007872,2.78429579,3591.6,3591.5,0.4831]
[1762779008075,3.04481562,3591.6,3591.5,0.4831]
[1762779010457,3.04481562,3591.6,3591.5,0.9676]
[1762779010955,6.34333728,3591.6,3591.5,0.9676]
[1762779011266,3.55904149,3591.6,3591.5,0.9676]
[1762779011450,6.3433159,3591.6,3591.5,0.9676]
[1762779013181,6.3433159,3591.6,3591.5,0.4831]
[1762779015375,6.3433159,3591.6,3591.5,0.9676]
[1762779015558,6.3433159,3591.6,3591.5,0.4831]
[1762779015763,3.04479424,3591.6,3591.5,0.4831]
[1762779015966,6.3433159,3591.6,3591.5,0.9676]
[1762779017297,6.3443159,3591.6,3591.5,0.9676]
[1762779018571,0.26151983,3591.6,3591.5,0.9676]
[1762779018999,0.001,3591.6,3591.5,0.9676]
[1762779019201,0.001,3591.6,3591.5,1.34559587]
[1762779020468,0.001,3591.6,3591.5,0.9676]
[1762779024205,0.0002,3591.6,3591.5,0.9676]
[1762779025507,0.0002,3591.6,3591.5,3.75195194]
[1762779026311,0.0002,3591.6,3591.5,3.77979545]
[1762779027503,0.0002,3591.6,3591.5,3.75195194]
[1762779027712,0.0002,3591.6,3591.5,4.83894399]
[1762779028015,0.0002,3591.6,3591.5,4.81110048]
[1762779032937,0.0002,3591.6,3591.5,8.62670047]
[1762779034619,0.0002,3591.6,3591.5,9.88641247]
[1762779038132,0.0002,3591.6,3591.5,10.25916229]
[1762779043941,0.0002,3591.6,3591.5,5.18080848]
[1762779044246,0.0002,3591.6,3591.5,2.80196054]
[1762779044433,0.0002,3591.6,3591.5,2.39645654]
[1762779044639,0.3942,3591.6,3591.1,0.1672]
[1762779044812,0.3942,3591.6,3591.1,0.012]
[1762779044813,3.29852166,3591.3,3591.1,0.012]
[1762779045016,3.25868453,3591.2,3591.1,0.012]
[1762779045243,3.64038453,3591.2,3591.1,0.012]
[1762779045933,0.8558,3591.2,3591.1,0.012]
[1762779046138,2.78447665,3591.6,3591.1,0.012]
[1762779046139,3.29852166,3591.5,3591.1,0.4647]
[1762779046345,0.25986078,3591.4,3591.2,0.4527]
[1762779046519,3.2586259,3591.3,3591.1,0.012]
[1762779046713,0.0038,3591.2,3591.1,0.012]
[1762779046935,0.3817,3591.4,3591.1,0.012]
[1762779047149,3.16615392,3591.4,3591.1,0.012]
[1762779047656,0.4732,3591.2,3591.1,0.012]
[1762779048172,0.4724,3591.2,3591.1,0.012]
[1762779049046,3.25698453,3591.2,3591.1,0.012]
[1762779049249,0.4724,3591.2,3591.1,0.012]
[1762779050648,3.29852166,3591.5,3591.1,0.4647]
[1762779051162,0.0002,3591.6,3591.1,0.4647]
[1762779051377,0.0002,3591.6,3591.5,0.4527]
[1762779051661,2.7843602,3591.5,3591.2,0.4726]
[1762779051862,2.7843602,3591.5,3591.1,0.1665]
[1762779052072,2.7843602,3591.5,3591.1,0.6391]
[1762779052565,2.78448699,3591.6,3591.1,0.6391]
[1762779053236,2.78435939,3591.5,3591.1,0.6391]
[1762779053440,3.76182166,3591.5,3591.1,0.012]
[1762779053774,2.78444487,3591.4,3591.1,0.012]
[1762779054173,6.54617434,3591.5,3591.1,0.012]
[1762779054489,3.76182166,3591.5,3591.1,0.012]
[1762779054639,0.0002,3591.6,3591.1,0.5023]
[1762779055281,2.78448252,3591.6,3591.1,0.5023]
[1762779055453,3.29852166,3591.5,3591.1,0.5023]
[1762779056762,3.29852166,3591.5,3591.1,3.2869585]
[1762779056977,3.29852166,3591.5,3591.1,0.6722]
[1762779057275,3.29852166,3591.5,3591.1,3.4568496]
[1762779057574,0.0002,3591.6,3591.1,3.4368496]
[1762779057792,0.0002,3591.6,3591.1,0.012]
[1762779057793,3.78742166,3591.5,3591.1,0.012]
[1762779057974,2.78448011,3591.4,3591.1,0.012]
[1762779058942,3.27338011,3591.4,3591.1,0.012]
[1762779059182,0.4889,3591.4,3591.1,0.012]
[1762779059383,0.4889,3591.4,3591.1,0.417504]
[1762779059582,3.27333947,3591.4,3591.1,0.417504]
[1762779059784,0.3664,3591.2,3591.1,0.417504]
[1762779059953,2.78450994,3591.3,3591.1,0.417504]
[1762779060461,0.4889,3591.4,3591.1,0.417504]
[1762779060661,6.08292462,3591.5,3591.1,0.417504]
[1762779060873,2.78443448,3591.4,3591.1,0.417504]
[1762779061999,0.3664,3591.2,3591.1,0.417504]
[1762779062169,0.3664,3591.2,3591.1,0.012]
[1762779063586,0.4876,3591.4,3591.1,0.4892]
[1762779063776,3.29852166,3591.5,3591.2,0.4772]
[1762779063973,6.57177487,3591.5,3591.2,0.4772]
[1762779064357,3.78742166,3591.5,3591.2,0.4772]
[1762779064688,6.57179815,3591.5,3591.2,0.4772]
[1762779064884,2.78449547,3591.4,3591.2,0.4772]
[1762779065384,2.78447585,3591.6,3591.1,0.012]
[1762779065385,2.78458453,3591.2,3591.1,0.012]
[1762779065584,3.27838453,3591.2,3591.1,0.012]
[1762779065903,2.78948453,3591.2,3591.1,0.012]
[1762779066057,3.27838453,3591.2,3591.1,0.012]
[1762779068620,3.53826626,3591.2,3591.1,0.012]
[1762779070121,3.53926626,3591.2,3591.1,0.012]
[1762779071109,6.56379579,3591.2,3591.1,0.012]
[1762779072304,6.56299579,3591.2,3591.1,0.012]
[1762779073280,6.56347958,3591.2,3591.1,0.012]
[1762779077452,3.04595005,3591.2,3591.1,0.4892]
[1762779078452,0.26136552,3591.2,3591.1,0.4892]
[1762779078757,3.04595005,3591.2,3591.1,0.4892]
[1762779079712,3.41225005,3591.2,3591.1,0.012]
[1762779079914,3.04595005,3591.2,3591.1,0.012]
[1762779080225,0.26136552,3591.2,3591.1,1.145]
[1762779080428,0.001,3591.2,3591.1,1.145]
[1762779080644,0.001,3591.2,3591.1,1.53838046]
[1762779081857,0.4857,3591.2,3591.1,0.40538046]
[1762779082040,0.4857,3591.2,3591.1,0.012]
[1762779082648,3.53059876,3591.2,3591.1,0.012]
[1762779082838,3.90109876,3591.2,3591.1,0.012]
[1762779083668,0.74605438,3591.2,3591.1,0.012]
[1762779083846,3.90113891,3591.2,3591.1,0.012]
[1762779085044,3.90112666,3591.2,3591.1,0.012]
[1762779085241,3.53062666,3591.2,3591.1,0.012]
[1762779085554,3.90112666,3591.2,3591.1,0.012]
[1762779095131,5.16083866,3591.2,3591.1,1e-08]
[1762779095439,5.16083866,3591.2,3590.3,0.002]
[1762779095440,2.78520499,3590.4,3590.3,0.002]
[1762779095750,6.07727665,3590.4,3590.3,0.002]
[1762779095951,6.54827665,3590.4,3590.3,0.002]
[1762779096260,6.54747665,3590.4,3590.3,0.002]
[1762779100573,6.07007665,3590.4,3590.3,0.4866]
[1762779101965,3.28487166,3590.4,3590.3,0.4866]
[1762779102174,3.28487166,3590.4,3590.3,0.9852]
[1762779102377,6.07007665,3590.4,3590.3,0.9852]
[1762779102546,6.44927665,3590.4,3590.3,0.002]
[1762779103092,6.91927665,3590.4,3590.3,0.002]
[1762779104368,6.92027665,3590.4,3590.3,0.002]
[1762779111284,2.78536014,3590.2,3590.1,0.01]
[1762779111484,3.05040227,3590.2,3590.1,0.01]
[1762779112109,3.04570227,3590.2,3590.1,0.4946]
[1762779112420,3.04570227,3590.2,3590.1,0.9932]
[1762779112722,3.04570227,3590.2,3590.1,0.675]
[1762779113020,3.04570227,3590.2,3590.1,1.1736]
[1762779114420,3.04570227,3590.2,3590.1,0.4946]
[1762779114720,3.04501981,3590.2,3590.1,0.4946]
[1762779114923,3.04501981,3590.2,3590.1,0.9844]
[1762779115851,3.42421981,3590.2,3590.1,0.01]
[1762779116146,3.89421981,3590.2,3590.1,0.01]
[1762779116490,3.42421981,3590.2,3590.1,0.01]
[1762779116926,3.89421981,3590.2,3590.1,0.01]
[1762779118433,0.25965967,3590.2,3590.1,0.4722]
[1762779118806,3.89411981,3590.2,3590.1,0.01]
[1762779119191,5.15383181,3590.2,3590.1,0.01]
[1762779119394,5.15383181,3590.2,3589.9,0.002]
[1762779119395,2.78551532,3590.0,3589.9,0.002]
[1762779119592,7.33431652,3590.0,3589.9,0.002]
[1762779119825,7.82341652,3590.0,3589.9,0.002]
[1762779120212,7.82261652,3590.0,3589.9,0.002]
[1762779122898,7.33351652,3590.0,3589.9,0.002]
[1762779123298,7.82261652,3590.0,3589.9,0.002]
[1762779123818,3.04517499,3590.0,3589.9,0.4642]
[1762779124933,3.04517499,3590.0,3589.9,0.002]
[1762779124934,3.40647499,3590.0,3589.9,0.002]
[1762779125708,3.89427499,3590.0,3589.9,0.002]
[1762779127925,5.15398699,3590.0,3589.9,0.002]
[1762779130242,8.17851652,3590.0,3589.9,0.002]
[1762779131511,7.69071652,3590.0,3589.9,0.002]
[1762779131709,7.32941652,3590.0,3589.9,0.4642]
[1762779132041,4.30488699,3590.0,3589.9,0.4642]
[1762779132221,3.04517499,3590.0,3589.9,0.4642]
[1762779132928,6.34685854,3590.0,3589.9,0.4642]
[1762779133844,6.34685854,3590.0,3589.9,0.9161]
[1762779134145,6.70815854,3590.0,3589.9,0.002]
[1762779134710,7.19595854,3590.0,3589.9,0.002]
[1762779135437,0.25965967,3590.0,3589.9,0.9161]
[1762779136752,3.04517499,3590.0,3589.9,0.9161]
[1762779138133,0.25965967,3590.0,3589.9,0.9161]
[1762779138451,3.04517499,3590.0,3589.9,0.9161]
[1762779139058,0.25965967,3590.0,3589.9,0.9161]
[1762779139416,3.04517499,3590.0,3589.9,0.9161]
[1762779140845,3.04617499,3590.0,3589.9,0.9161]
[1762779141426,0.26065967,3590.0,3589.9,0.9161]
[1762779143772,3.04617499,3590.0,3589.9,0.9161]
[1762779144271,3.04537499,3590.0,3589.9,0.9161]
[1762779146447,3.04537499,3590.0,3589.9,0.4642]
[1762779146672,3.89107499,3590.0,3589.9,0.002]
[1762779148069,3.63221532,3590.0,3589.9,0.002]
[1762779156275,3.89258571,3590.0,3589.9,0.002]
[1762779160109,6.34787965,3589.6,3589.5,0.002]
[1762779160487,3.0461961,3589.6,3589.5,0.474]
[1762779160681,6.34787965,3589.6,3589.5,0.474]
[1762779161301,6.34787965,3589.6,3589.5,0.002]
[1762779161907,3.56205394,3589.6,3589.5,0.474]
[1762779162114,3.0461961,3589.6,3589.5,0.9478]
[1762779163305,0.26037039,3589.6,3589.5,0.9478]
[1762779163814,3.0461961,3589.6,3589.5,0.9478]
[1762779164885,6.34787965,3589.6,3589.5,0.9478]
[1762779165810,3.04647839,3589.6,3589.5,0.9478]
[1762779166624,0.26065268,3589.6,3589.5,0.9478]
[1762779166829,3.04647839,3589.6,3589.5,0.9478]
[1762779167614,3.04647839,3589.6,3589.5,0.474]
[1762779168012,3.40477839,3589.6,3589.5,0.002]
[1762779168322,3.88877839,3589.6,3589.5,0.002]
[1762779171126,3.04567839,3589.6,3589.5,0.474]
[1762779171327,3.04567839,3589.6,3589.5,0.9478]
[1762779173135,3.04567839,3589.6,3589.5,0.474]
[1762779176325,3.04567839,3589.6,3589.5,0.9491]
[1762779177055,3.04567839,3589.6,3589.5,0.474]
[1762779177654,3.04667839,3589.6,3589.5,0.474]
[1762779178355,3.04667839,3589.6,3589.5,0.9491]
[1762779180670,3.04667839,3589.6,3589.5,0.474]
[1762779181929,3.04667839,3589.6,3589.5,0.002]
[1762779182569,3.42867839,3589.6,3589.5,0.002]
[1762779182765,3.16882571,3589.6,3589.5,0.002]
[1762779182972,3.42986959,3589.6,3589.5,0.002]
[1762779183478,3.89116959,3589.6,3589.5,0.002]
[1762779184385,3.04786959,3589.6,3589.5,0.4644]
[1762779187157,3.04786959,3589.6,3589.5,0.002]
[1762779187495,3.52416959,3589.6,3589.5,0.002]
[1762779187809,3.89216959,3589.6,3589.5,0.002]
[1762779190270,7.19385314,3589.6,3589.5,0.002]
[1762779191614,6.82585314,3589.6,3589.5,0.002]
[1762779191913,6.34955314,3589.6,3589.5,0.4644]
[1762779192420,6.34875314,3589.6,3589.5,0.4644]
[1762779193019,3.04706959,3589.6,3589.5,0.4644]
[1762779193193,3.42906959,3589.6,3589.5,0.002]
[1762779194109,3.89036959,3589.6,3589.5,0.002]
[1762779199316,3.04706959,3589.6,3589.5,0.4644]
[1762779202297,3.04706959,3589.6,3589.5,0.9395]
[1762779202840,3.04786959,3589.6,3589.5,0.9395]
[1762779203001,0.26204388,3589.6,3589.5,0.9395]
[1762779203198,0.26204388,3589.6,3589.5,4.0979668]
[1762779203414,0.001,3589.6,3589.5,4.5034708]
[1762779204432,0.001,3589.6,3589.5,4.87622062]
[1762779205243,0.001,3589.6,3589.5,4.5034708]
[1762779206649,0.001,3589.6,3589.5,4.53132983]
[1762779206850,0.001,3589.6,3589.5,4.5034708]
[1762779207440,0.001,3589.6,3589.5,1.71756748]
[1762779207752,0.001,3589.6,3589.5,4.13090732]
[1762779208224,0.001,3589.6,3589.5,4.15876635]
[1762779208561,0.001,3589.6,3589.5,4.13090732]
[1762779211668,0.001,3589.6,3589.5,7.94650731]
[1762779213450,0.001,3589.6,3589.5,8.78250072]
[1762779213654,0.001,3589.6,3589.5,9.93934989]
[1762779214962,0.001,3589.6,3589.5,9.93934989]
[1762779216168,0.0002,3589.6,3589.5,9.93934989]
[1762779216666,0.0002,3589.6,3589.5,11.19906189]
[1762779219625,0.0002,3589.6,3589.5,11.81906189]
[1762779220047,0.0002,3589.6,3589.5,12.19181171]
[1762779220622,0.0002,3589.6,3589.5,12.14834033]
[1762779222169,0.0002,3589.6,3589.5,12.52109015]
[1762779223279,0.0002,3589.6,3589.5,12.19181171]
[1762779224839,0.0002,3589.6,3589.5,15.12281171]
[1762779225034,0.0002,3589.6,3589.5,12.19181171]
[1762779225634,0.0002,3589.6,3589.5,12.52109015]
[1762779231012,0.0002,3589.6,3589.5,11.78630771]
[1762779231290,0.0002,3589.6,3589.5,11.41355789]
[1762779231461,0.0002,3589.6,3589.5,11.81906189]
[1762779231661,0.0002,3589.6,3589.5,11.41355789]
[1762779231898,0.0002,3589.6,3589.5,15.21887341]
[1762779232208,0.0002,3589.6,3589.5,15.54815185]
[1762779239264,0.0002,3589.6,3589.5,12.19181171]
[1762779240208,0.0004,3590.0,3589.9,2.78559291]
[1762779240376,0.0004,3590.0,3589.9,4.45080891]
[1762779240693,0.3903,3590.0,3589.9,5.22009753]
[1762779240894,0.3903,3590.0,3589.9,5.68059753]
[1762779241101,0.3903,3590.0,3589.9,9.49619752]
[1762779241596,0.3903,3590.0,3589.9,9.09069352]
[1762779241783,0.8491,3590.0,3589.9,7.8609049]
[1762779242110,0.0004,3590.0,3589.9,8.2664089]
[1762779242302,0.391,3590.0,3589.9,8.2664089]
[1762779243298,0.4914,3590.0,3589.9,9.41064751]
[1762779243724,0.0004,3590.0,3589.9,9.87784751]
[1762779243897,0.0004,3590.0,3589.9,10.70699733]
[1762779244424,0.0004,3590.0,3589.9,11.52767577]
[1762779246917,0.001,3590.3,3590.1,4.45065373]
[1762779247122,0.001,3590.3,3590.2,7.49792233]
[1762779247284,0.001,3590.3,3590.2,7.95432233]
[1762779247490,0.001,3590.3,3590.2,11.88095302]
[1762779248127,0.001,3590.3,3590.2,12.21023146]
[1762779249833,0.001,3590.3,3590.2,14.21017724]
[1762779250897,0.001,3590.3,3590.2,12.21023146]
[1762779251630,0.001,3590.3,3590.2,14.21017724]
[1762779253106,0.001,3590.3,3590.2,12.21023146]
[1762779255128,0.001,3590.3,3590.2,15.50789646]
[1762779255327,0.001,3590.3,3590.2,18.43889646]
[1762779255701,0.001,3590.7,3590.6,3.19055385]
[1762779255902,0.001,3590.7,3590.6,9.92279634]
[1762779256224,0.001,3590.7,3590.6,13.67686134]
[1762779256413,0.001,3590.7,3590.6,13.78827714]
[1762779256926,0.001,3590.7,3590.6,14.16102696]
[1762779257629,0.001,3590.7,3590.6,14.4903054]
[1762779258327,0.001,3590.7,3590.6,14.0339054]
[1762779258526,0.001,3590.7,3590.6,17.7879704]
[1762779258753,0.001,3590.7,3590.6,14.4903054]
[1762779258928,0.001,3590.7,3590.6,17.7879704]
[1762779259333,0.001,3590.7,3590.6,14.4903054]
[1762779261528,0.001,3591.1,3590.9,0.405504]
[1762779261830,0.001,3591.1,3591.0,1.74556283]
[1762779262029,0.001,3591.1,3591.0,4.53030245]
[1762779262227,0.001,3591.1,3591.0,9.54717945]
[1762779262436,0.001,3591.1,3591.0,9.91992927]
[1762779262660,0.001,3591.1,3591.0,10.37632927]
[1762779262841,0.001,3591.1,3591.0,12.55783198]
[1762779264135,0.0002,3591.1,3591.0,12.55783198]
[1762779265061,0.0002,3591.1,3591.0,15.85549698]
[1762779265370,0.0002,3591.1,3591.0,16.18477542]
[1762779265530,0.0002,3591.1,3591.0,15.85549698]
[1762779266560,0.0002,3591.1,3591.0,12.55783198]
[1762779266855,0.0002,3591.1,3591.0,15.85549698]
[1762779267432,0.0002,3591.1,3591.0,19.66669697]
[1762779267959,0.0002,3591.1,3591.0,19.99597541]
[1762779273360,0.001,3591.2,3591.0,19.99597541]
[1762779273361,0.001,3591.2,3591.1,8.63362789]
[1762779273667,0.001,3591.2,3591.1,12.28576559]
[1762779273972,0.001,3591.2,3591.1,12.39716091]
[1762779274374,0.001,3591.2,3591.1,12.91813935]
[1762779274672,0.001,3591.5,3591.4,3.84797779]
[1762779274978,0.001,3591.5,3591.4,14.87851277]
[1762779275163,0.001,3591.5,3591.4,18.05000618]
[1762779275368,0.001,3591.5,3591.4,21.09238165]
[1762779277444,0.001,3591.5,3591.4,21.09238165]
[1762779277853,0.001,3591.5,3591.4,20.43433733]
[1762779278051,0.3991,3591.5,3591.4,8.40535464]
[1762779278249,0.8722,3591.5,3591.4,10.20001964]
[1762779278503,0.001,3591.5,3591.4,12.52856946]
[1762779278654,0.001,3591.5,3591.4,12.93407346]
[1762779278985,0.001,3591.5,3591.4,17.0135169]
[1762779279988,0.001,3591.5,3591.4,20.82451689]
[1762779280592,0.001,3591.5,3591.4,17.52685189]
[1762779280791,0.001,3591.5,3591.4,20.82451689]
[1762779283083,0.001,3591.5,3591.4,17.52685189]
[1762779285017,0.8722,3591.5,3591.4,12.58910445]
[1762779285180,0.8722,3591.5,3591.4,12.76718193]
[1762779285703,0.8722,3591.5,3591.4,8.20980493]
[1762779285994,0.8722,3591.5,3591.4,2.89580494]
[1762779286209,0.8722,3591.5,3591.4,4.15551694]
[1762779286563,0.8722,3591.5,3591.4,4.56102094]
[1762779287771,0.8722,3591.5,3591.4,1.37108747]
[1762779287980,0.8722,3591.5,3591.2,3.81099999]
[1762779288209,0.3981,3591.3,3591.2,3.81099999]
[1762779288504,0.3981,3591.3,3591.2,5.07071199]
[1762779289067,0.3981,3591.3,3591.2,3.81099999]
[1762779289972,0.3981,3591.3,3591.1,1.261712]
[1762779290171,0.871,3591.2,3591.1,0.002]
[1762779291015,0.871,3591.2,3591.1,2.78666208]
[1762779291289,0.871,3591.2,3591.1,3.19216608]
[1762779293803,0.871,3591.2,3591.1,7.00316607]
[1762779294631,0.4536,3591.2,3591.1,8.55446198]
[1762779294812,0.871,3591.2,3591.1,8.55446198]
[1762779296949,0.871,3591.2,3591.1,8.26287807]
[1762779299117,0.4536,3591.2,3591.1,8.26287807]
[1762779299333,0.001,3591.5,3591.4,4.44964547]
[1762779299541,0.001,3591.5,3591.4,8.20661047]
[1762779299816,0.4081,3591.5,3591.4,7.74731047]
[1762779299984,0.4081,3591.5,3591.4,9.51661417]
[1762779300186,0.4081,3591.5,3591.4,10.17861417]
[1762779302426,0.001,3591.5,3591.4,15.31746398]
[1762779302611,0.8715,3591.5,3591.4,6.10546181]
[1762779302936,0.8715,3591.5,3591.4,5.07071199]
[1762779303101,0.8715,3591.5,3591.4,8.26064546]
[1762779303415,0.8715,3591.5,3591.4,5.47621599]
[1762779303604,0.8715,3591.5,3591.4,8.26064546]
[1762779305383,0.8715,3591.5,3591.4,4.44964547]
[1762779306624,0.001,3591.5,3591.4,8.83796811]
[1762779306792,0.4087,3591.5,3591.4,8.83796811]
[1762779306991,0.001,3591.5,3591.4,9.29726811]
[1762779307198,0.001,3591.5,3591.4,9.67001793]
[1762779307393,0.001,3591.5,3591.4,10.16581793]
[1762779307633,0.001,3591.5,3591.4,9.67001793]